bitfinex/quotes_SOLUSD_20220210
["timestamp","ask_amount","ask_price","bid_price","bid_amount"]
[1644490833149,0.024,113.78,113.71,51.48048965]
[1644490833552,0.024,113.78,113.71,51.23048965]
[1644490833749,1.27491735,113.79,113.71,51.23048965]
[1644490833949,0.024,113.78,113.72,4.394]
[1644490834149,0.024,113.78,113.73,25.8868]
[1644490834350,0.024,113.79,113.73,50.4298]
[1644490834954,0.024,113.79,113.73,50.6798]
[1644490835452,1.27491735,113.79,113.73,50.6798]
[1644490835653,0.024,113.78,113.73,50.6798]
[1644490836555,0.024,113.78,113.73,50.4298]
[1644490837658,0.024,113.78,113.73,52.39358965]
[1644490837856,0.024,113.79,113.73,52.39358965]
[1644490838256,0.024,113.79,113.73,50.6798]
[1644490838658,1.27491735,113.79,113.73,50.6798]
[1644490838858,0.024,113.78,113.73,50.6798]
[1644490839057,0.024,113.78,113.73,50.4298]
[1644490839457,0.024,113.79,113.73,50.4298]
[1644490839960,42.77110922,113.79,113.73,50.4298]
[1644490840264,0.024,113.78,113.73,50.4298]
[1644490841061,1.27491735,113.78,113.73,50.4298]
[1644490841272,0.024,113.78,113.73,50.6798]
[1644490841460,0.024,113.78,113.73,50.4298]
[1644490841661,1.27491735,113.79,113.73,50.4298]
[1644490841860,0.024,113.78,113.73,50.4298]
[1644490842061,0.024,113.78,113.73,50.6798]
[1644490842461,1.27491735,113.79,113.73,50.6798]
[1644490842662,0.024,113.78,113.73,50.4298]
[1644490844064,46.70704236,113.78,113.73,50.4298]
[1644490844265,57.67904236,113.78,113.73,25.8868]
[1644490844466,63.32395971,113.78,113.73,13.1868]
[1644490847398,58.92995971,113.78,113.73,13.1868]
[1644490847999,47.95795971,113.78,113.73,13.1868]
[1644490848802,46.70704236,113.78,113.73,13.1868]
[1644490849602,46.70704236,113.78,113.73,38.0324]
[1644490849901,46.70704236,113.78,113.73,38.2824]
[1644490850103,46.70704236,113.78,113.73,38.0324]
[1644490850302,47.95795971,113.78,113.73,38.0324]
[1644490850503,47.93395971,113.78,113.73,38.0324]
[1644490850801,48.18395971,113.78,113.73,38.0324]
[1644490851201,46.93304236,113.78,113.73,38.0324]
[1644490851403,48.20795971,113.78,113.73,38.0324]
[1644490851610,48.18395971,113.78,113.73,38.0324]
[1644490853501,48.18395971,113.78,113.73,38.2824]
[1644490853502,46.93304236,113.78,113.73,38.2824]
[1644490853705,46.95704236,113.78,113.73,38.2824]
[1644490854305,48.20795971,113.78,113.73,38.2824]
[1644490854505,48.18395971,113.78,113.73,38.2824]
[1644490855208,48.18395971,113.78,113.73,38.0324]
[1644490855607,48.20795971,113.78,113.73,38.0324]
[1644490857333,48.20795971,113.78,113.73,13.1868]
[1644490859434,48.20795971,113.78,113.73,36.9767]
[1644490861336,47.95795971,113.78,113.73,37.2267]
[1644490861538,47.95795971,113.78,113.73,36.9767]
[1644490863639,47.95795971,113.78,113.73,13.1868]
[1644490863842,58.35795971,113.78,113.73,13.1868]
[1644490864041,1.25091735,113.77,113.73,13.1868]
[1644490864243,44.40901718,113.76,113.73,13.1868]
[1644490864442,0.5,113.75,113.7,12.7]
[1644490864642,0.5,113.75,113.69,67.7221]
[1644490864643,48.48357036,113.74,113.69,43.9711]
[1644490864942,61.44057036,113.74,113.68,12.7]
[1644490865542,12.957,113.74,113.68,25.8948]
[1644490865743,8.561,113.74,113.69,4.397]
[1644490865944,24.70711735,113.75,113.69,4.397]
[1644490866143,23.4562,113.75,113.69,17.097]
[1644490866345,23.4562,113.75,113.69,17.347]
[1644490866542,67.73888832,113.75,113.69,17.347]
[1644490866745,67.73888832,113.75,113.69,17.097]
[1644490867143,67.73888832,113.75,113.7,13.1917]
[1644490867643,23.4562,113.75,113.7,13.1917]
[1644490868043,23.4322,113.75,113.7,13.1917]
[1644490868243,23.7062,113.75,113.7,13.1917]
[1644490868443,23.7062,113.75,113.69,25.8934]
[1644490869643,23.6822,113.75,113.69,25.8934]
[1644490869844,23.6822,113.75,113.69,26.1434]
[1644490870744,23.6822,113.75,113.69,30.5394]
[1644490871044,23.6822,113.75,113.69,30.2894]
[1644490871247,45.90535065,113.74,113.69,30.2894]
[1644490871447,45.90535065,113.74,113.69,25.8934]
[1644490872547,35.7522,113.75,113.69,25.8934]
[1644490872749,23.4322,113.75,113.69,25.8934]
[1644490873449,58.77635072,113.75,113.69,25.8934]
[1644490874153,63.17235072,113.75,113.69,25.8934]
[1644490875752,63.42235072,113.75,113.69,25.8934]
[1644490876151,63.42235072,113.75,113.69,26.1434]
[1644490876351,59.02635072,113.75,113.69,25.8934]
[1644490877749,59.02635072,113.75,113.69,25.3934]
[1644490879457,23.6822,113.75,113.7,4.396]
[1644490879654,23.6822,113.75,113.7,17.5886]
[1644490879854,23.6822,113.75,113.7,13.1926]
[1644490881155,34.56247506,113.74,113.7,13.1926]
[1644490881557,34.56247506,113.74,113.69,17.5895]
[1644490881760,48.86347506,113.74,113.69,13.1935]
[1644490883657,49.11347506,113.74,113.68,36.0361]
[1644490884159,62.30877506,113.74,113.67,12.7]
[1644490884362,62.30877506,113.74,113.64,28.0268]
[1644490884561,46.34724955,113.72,113.65,13.1985]
[1644490884758,37.64737573,113.7,113.64,4.397]
[1644490884957,45.35037573,113.7,113.63,12.7]
[1644490885560,58.54997573,113.7,113.63,12.95]
[1644490886659,58.54997573,113.7,113.63,25.9002]
[1644490888165,4.398,113.69,113.63,25.9002]
[1644490888366,38.10316009,113.68,113.63,25.9002]
[1644490889765,38.10316009,113.68,113.63,12.7]
[1644490890967,51.30526009,113.68,113.62,42.0561]
[1644490891184,51.30526009,113.68,113.62,24.4557]
[1644490891386,51.30526009,113.68,113.6,17.099]
[1644490891584,38.59297803,113.66,113.58,0.024]
[1644490891785,44.94623049,113.64,113.58,0.024]
[1644490892187,45.19623049,113.64,113.58,0.024]
[1644490892985,4.401,113.63,113.58,0.024]
[1644490893585,46.60918579,113.62,113.58,0.024]
[1644490893987,57.93818579,113.62,113.58,0.024]
[1644490894186,57.93818579,113.62,113.56,0.024]
[1644490894387,36.03887739,113.6,113.56,0.024]
[1644490894587,36.03887739,113.6,113.54,37.3424]
[1644490894790,36.03887739,113.6,113.54,12.724]
[1644490897691,36.03887739,113.6,113.54,0.024]
[1644490897891,4.401,113.61,113.52,12.7]
[1644490897892,36.4785932,113.58,113.52,12.724]
[1644490898092,45.5838419,113.56,113.53,0.024]
[1644490898292,0.5,113.55,113.52,0.024]
[1644490898495,40.78980903,113.54,113.5,25.9374]
[1644490899295,41.03980903,113.54,113.5,12.724]
[1644490899494,41.03980903,113.54,113.5,0.024]
[1644490899699,4.404,113.53,113.48,0.024]
[1644490899900,47.64450802,113.52,113.46,12.724]
[1644490900099,56.60050802,113.52,113.47,0.024]
[1644490902401,40.50451302,113.5,113.47,0.024]
[1644490902597,40.50451302,113.5,113.45,117.53008884]
[1644490902598,0.5,113.49,113.45,117.55408884]
[1644490902800,0.5,113.49,113.45,117.53008884]
[1644490903298,0.5,113.49,113.44,79.3428]
[1644490903798,0.5,113.49,113.44,79.5928]
[1644490904399,0.5,113.49,113.44,75.1888]
[1644490906900,37.58245742,113.49,113.44,61.9694]
[1644490907101,0.5,113.49,113.44,12.974]
[1644490907301,0.5,113.49,113.44,12.724]
[1644490907504,0.5,113.49,113.44,0.024]
[1644490908107,50.65700436,113.48,113.44,0.024]
[1644490908311,71.25560436,113.48,113.42,0.024]
[1644490908507,71.25560436,113.48,113.4,0.024]
[1644490908707,71.25560436,113.48,113.39,0.024]
[1644490908906,66.84960436,113.48,113.37,0.024]
[1644490909106,4.408,113.47,113.37,0.024]
[1644490909409,47.39184768,113.46,113.39,1.96990968]
[1644490909606,47.39184768,113.46,113.4,0.024]
[1644490909806,47.39184768,113.46,113.4,4.432]
[1644490910207,47.39184768,113.46,113.4,0.024]
[1644490910410,47.39184768,113.46,113.39,4.682]
[1644490910608,47.39184768,113.46,113.4,0.024]
[1644490911409,4.408,113.47,113.4,0.024]
[1644490911610,40.1802,113.5,113.41,1.96990968]
[1644490911908,22.5472,113.5,113.42,17.131]
[1644490912111,22.5472,113.5,113.43,0.024]
[1644490912310,22.5472,113.5,113.44,4.406]
[1644490912512,39.96130118,113.49,113.43,0.024]
[1644490914112,40.21130118,113.49,113.43,0.024]
[1644490915613,40.21130118,113.49,113.42,0.024]
[1644490920024,40.21130118,113.49,113.41,16.88]
[1644490921326,44.61830118,113.49,113.41,16.88]
[1644490922323,44.61830118,113.49,113.41,32.05137672]
[1644490922926,44.61830118,113.49,113.41,30.104]
[1644490923526,40.21130118,113.49,113.41,30.104]
[1644490923925,40.21130118,113.49,113.41,32.05137672]
[1644490925031,63.05350118,113.49,113.41,32.05137672]
[1644490925829,62.80350118,113.49,113.41,32.05137672]
[1644490926734,62.80350118,113.49,113.41,33.29386938]
[1644490927543,4.407,113.5,113.41,33.29386938]
[1644490927737,4.407,113.53,113.41,39.29386938]
[1644490927939,28.6908,113.54,113.45,13.219]
[1644490928138,28.6908,113.54,113.46,35.6316]
[1644490928336,24.2848,113.54,113.46,37.82897672]
[1644490928538,39.33239244,113.53,113.46,37.82897672]
[1644490929136,39.33239244,113.53,113.46,51.04777672]
[1644490929337,39.33239244,113.53,113.47,4.405]
[1644490929837,39.33239244,113.53,113.47,4.655]
[1644490930037,37.5057,113.54,113.47,4.655]
[1644490930238,37.5057,113.54,113.47,6.60237672]
[1644490930840,37.5057,113.54,113.47,4.655]
[1644490931039,39.02850447,113.53,113.47,4.655]
[1644490931239,39.02850447,113.53,113.47,0.25]
[1644490931439,39.02850447,113.53,113.46,53.2554]
[1644490931639,43.43350447,113.53,113.46,49.1004]
[1644490931841,39.02850447,113.53,113.46,49.1004]
[1644490932356,39.02850447,113.53,113.46,48.8504]
[1644490932756,39.02850447,113.53,113.46,49.1004]
[1644490933157,43.43350447,113.53,113.46,49.1004]
[1644490934760,43.68350447,113.53,113.46,49.1004]
[1644490935661,43.68350447,113.53,113.47,0.024]
[1644490935861,39.27850447,113.53,113.47,0.024]
[1644490936660,52.49920447,113.53,113.47,0.024]
[1644490936862,4.655,113.53,113.47,0.024]
[1644490937065,4.655,113.53,113.47,1.97137672]
[1644490937263,4.655,113.53,113.47,24.67237672]
[1644490938066,0.25,113.53,113.48,4.405]
[1644490938265,24.2848,113.54,113.48,4.679]
[1644490938666,44.30204383,113.53,113.48,4.429]
[1644490939666,4.405,113.52,113.48,4.429]
[1644490939865,39.31105182,113.51,113.48,4.405]
[1644490940074,0.5,113.5,113.48,4.405]
[1644490940468,0.5,113.5,113.49,3.03219997]
[1644490941068,0.5,113.5,113.48,4.405]
[1644490941268,35.31194377,113.51,113.49,2.53219997]
[1644490941667,35.81194377,113.51,113.49,2.53219997]
[1644490942268,35.81194377,113.51,113.47,0.024]
[1644490942469,35.81194377,113.51,113.45,25.9451]
[1644490942668,4.406,113.5,113.45,12.724]
[1644490943272,44.80792421,113.49,113.45,12.724]
[1644490943471,44.80792421,113.49,113.45,12.7]
[1644490944169,4.406,113.53,113.45,12.7]
[1644490944371,13.2214,113.52,113.46,0.024]
[1644490944571,4.405,113.51,113.46,0.024]
[1644490945273,37.68132112,113.5,113.46,0.024]
[1644490945673,37.93132112,113.5,113.46,0.024]
[1644490947876,0.25,113.5,113.46,0.024]
[1644490948373,13.2214,113.52,113.46,0.024]
[1644490948774,40.11446451,113.51,113.46,0.024]
[1644490949373,40.36446451,113.51,113.46,0.024]
[1644490951676,40.36446451,113.51,113.46,13.2443]
[1644490954385,44.76946451,113.51,113.46,0.024]
[1644490955384,40.36446451,113.51,113.46,0.024]
[1644490959390,44.76946451,113.51,113.46,0.024]
[1644490960490,40.36446451,113.51,113.46,0.024]
[1644490963693,44.76946451,113.51,113.46,0.024]
[1644490964898,63.26416451,113.51,113.45,5.64749266]
[1644490965094,4.405,113.5,113.45,4.405]
[1644490965294,40.22530197,113.49,113.45,4.405]
[1644490966696,53.45050197,113.49,113.45,4.405]
[1644490967897,4.406,113.48,113.45,4.405]
[1644490968097,41.89813155,113.47,113.45,4.405]
[1644490969099,42.14813155,113.47,113.45,4.405]
[1644490970202,41.64813155,113.47,113.46,2.53219997]
[1644490970400,41.64813155,113.47,113.45,4.405]
[1644490970600,54.87443155,113.47,113.45,4.405]
[1644490971799,0.5,113.46,113.45,4.405]
[1644490972002,46.06971015,113.45,113.41,54.46909266]
[1644490972599,46.06971015,113.45,113.41,41.76909266]
[1644490972801,46.31971015,113.45,113.41,36.1196]
[1644490972999,46.31971015,113.45,113.41,22.8935]
[1644490973625,55.77371015,113.45,113.4,18.81838466]
[1644490973806,55.77371015,113.45,113.4,4.348592]
[1644490973999,4.408,113.44,113.4,4.348592]
[1644490974199,47.60085693,113.43,113.4,4.348592]
[1644490974402,0.5,113.42,113.4,4.348592]
[1644490974599,38.94485161,113.41,113.4,4.348592]
[1644490975099,38.94485161,113.41,113.37,18.88139266]
[1644490975404,38.94485161,113.41,113.37,5.65049266]
[1644490975603,47.08685161,113.41,113.36,38.53889266]
[1644490975801,47.08685161,113.41,113.36,37.2964]
[1644490977103,47.08685161,113.41,113.36,24.0644]
[1644490979105,51.49585161,113.41,113.34,13.94249266]
[1644490979306,64.73025161,113.41,113.34,12.7]
[1644490979506,106.0,113.4,113.31,13.94249266]
[1644490979707,40.63275634,113.39,113.31,1.24249266]
[1644490979906,55.56397788,113.39,113.27,1.24249266]
[1644490980106,85.39551073,113.37,113.25,1.24249266]
[1644490980308,36.51213432,113.35,113.26,12.7]
[1644490980510,36.51213432,113.35,113.26,13.94249266]
[1644490980709,46.9728,113.38,113.27,6.38879475]
[1644490980910,18.36291735,113.43,113.28,12.724]
[1644490981132,4.41,113.41,113.29,52.71749266]
[1644490981338,4.41,113.41,113.3,12.7]
[1644490981536,4.41,113.41,113.31,0.024]
[1644490981735,47.32729024,113.4,113.31,0.024]
[1644490981933,4.41,113.39,113.31,0.024]
[1644490982132,47.32729024,113.4,113.32,4.41]
[1644490982335,47.32729024,113.4,113.33,0.024]
[1644490983236,44.59233688,113.38,113.33,0.024]
[1644490983434,46.01507682,113.36,113.31,0.024]
[1644490983633,36.26536074,113.34,113.28,0.024]
[1644490983833,36.51536074,113.34,113.29,0.024]
[1644490984034,36.51536074,113.34,113.28,4.436]
[1644490984234,40.92736074,113.34,113.28,0.024]
[1644490985133,36.51536074,113.34,113.28,0.024]
[1644490987234,40.92736074,113.34,113.28,0.024]
[1644490987635,40.92736074,113.34,113.27,0.024]
[1644490988233,36.51536074,113.34,113.28,4.412]
[1644490988439,36.51536074,113.34,113.28,4.436]
[1644490988737,36.51536074,113.34,113.28,0.274]
[1644490989638,0.25,113.34,113.28,13.5141]
[1644490989839,4.412,113.36,113.28,13.5141]
[1644490990040,4.412,113.36,113.29,0.024]
[1644490990855,4.412,113.36,113.3,4.412]
[1644490991044,70.55864355,113.37,113.3,4.412]
[1644490991243,70.55864355,113.37,113.31,0.024]
[1644490991441,47.05054355,113.37,113.31,0.024]
[1644490991642,47.05054355,113.37,113.29,4.434]
[1644490991843,51.46054355,113.37,113.29,0.274]
[1644490992042,51.46054355,113.37,113.3,13.2377]
[1644490992245,51.46054355,113.37,113.31,0.024]
[1644490992246,47.05054355,113.37,113.31,0.024]
[1644490993647,47.30054355,113.37,113.31,0.024]
[1644490996853,47.30054355,113.37,113.31,13.2609]
[1644490997253,47.30054355,113.37,113.31,13.5109]
[1644491001055,47.30054355,113.37,113.32,4.41]
[1644491001256,47.30054355,113.37,113.32,4.684]
[1644491001654,47.30054355,113.37,113.32,13.5101]
[1644491003457,47.30054355,113.37,113.32,13.2601]
[1644491004057,47.05054355,113.37,113.32,13.2601]
[1644491004462,47.05054355,113.37,113.21,205.48000745]
[1644491004463,2.23122154,113.32,113.22,13.37909302]
[1644491004660,87.75,113.3,113.19,4.10570708]
[1644491004859,30.694118,113.29,113.17,99.5471383]
[1644491005058,181.149118,113.28,113.17,99.5471383]
[1644491005259,100.45,113.27,113.16,7.0]
[1644491005460,46.48254607,113.26,113.16,7.0]
[1644491005660,13.2606,113.23,113.16,6.76357737]
[1644491005859,17.117,113.22,113.16,6.76357737]
[1644491006462,19.34822154,113.22,113.16,6.76357737]
[1644491006760,41.31996032,113.21,113.16,6.76357737]
[1644491006961,17.117,113.2,113.16,6.76357737]
[1644491007160,30.3783,113.2,113.16,6.76357737]
[1644491007384,0.84389227,113.16,112.97,3.76695346]
[1644491007564,0.84389227,113.16,112.94,3.133302]
[1644491007565,49.451365,113.15,112.94,3.133302]
[1644491007760,18.42526787,113.1,112.94,3.133302]
[1644491007959,0.45,113.07,112.9,3.133302]
[1644491008158,17.125,113.06,112.95,7.0]
[1644491008359,87.75,113.05,112.95,7.0]
[1644491008559,104.874,113.04,112.95,7.0]
[1644491008763,116.518,113.04,112.88,3.133302]
[1644491008963,7.0,113.02,112.88,3.133302]
[1644491009161,17.126,113.01,112.88,3.133302]
[1644491009361,17.126,113.01,112.83,2.25617732]
[1644491009362,19.35722154,113.01,112.84,35.09677991]
[1644491009563,26.95122154,113.01,112.84,35.09677991]
[1644491009762,185.69122154,113.01,112.84,35.09677991]
[1644491009963,183.46,113.01,112.84,35.09677991]
[1644491010465,183.46,113.01,112.85,1.94858992]
[1644491010664,196.7484,113.01,112.85,1.94858992]
[1644491010864,183.46,113.01,112.86,44.43656152]
[1644491011064,158.74,112.99,112.86,44.43656152]
[1644491011365,17.126,112.98,112.86,46.38515144]
[1644491011569,27.257,112.98,112.86,44.43656152]
[1644491011764,40.5483,112.98,112.86,44.43656152]
[1644491011964,40.7983,112.98,112.86,44.43656152]
[1644491012565,2.23122154,112.97,112.87,4.426]
[1644491012766,17.126,112.96,112.88,39.58029762]
[1644491013366,12.7,112.96,112.88,39.58029762]
[1644491013771,12.7,112.96,112.88,41.52888754]
[1644491013970,163.36389012,113.02,112.88,41.77888754]
[1644491014171,4.62389012,113.02,112.89,4.424]
[1644491014370,4.426,113.04,112.89,4.674]
[1644491014569,12.7,113.03,112.89,0.25]
[1644491014772,4.426,113.02,112.9,4.424]
[1644491014969,17.126,113.02,112.91,42.36315049]
[1644491015169,17.126,113.02,112.91,44.30857806]
[1644491015370,17.126,113.02,112.91,44.55857806]
[1644491015571,12.7,113.02,112.92,6.37142757]
[1644491015771,4.62463588,113.04,112.93,12.7]
[1644491015972,4.62463588,113.04,112.94,4.425]
[1644491016180,24.4429,113.07,112.95,12.7]
[1644491016371,24.4429,113.07,112.96,40.453691]
[1644491016572,4.424,113.06,112.96,40.453691]
[1644491016774,4.424,113.06,112.97,1.94542757]
[1644491016973,24.4429,113.07,112.98,4.424]
[1644491017173,103.01078492,113.09,112.98,4.424]
[1644491017374,103.01078492,113.09,112.99,14.64542757]
[1644491017577,103.01078492,113.09,113.01,43.60980231]
[1644491017774,103.01078492,113.09,113.01,56.55980231]
[1644491018174,103.01078492,113.09,113.02,1.94542757]
[1644491018574,103.01078492,113.09,113.03,12.7]
[1644491018776,103.01078492,113.09,113.04,4.422]
[1644491018977,103.01078492,113.09,113.05,47.6578358]
[1644491019381,103.01078492,113.09,113.05,34.9578358]
[1644491019575,20.87885273,113.15,113.05,34.9578358]
[1644491019875,20.87885273,113.15,113.05,36.90326337]
[1644491020076,21.12885273,113.15,113.06,0.024]
[1644491023199,4.672,113.15,113.06,0.024]
[1644491023396,4.422,113.15,113.06,0.024]
[1644491023798,2.23122154,113.14,113.06,0.024]
[1644491024000,4.42,113.13,113.06,0.024]
[1644491024197,39.82116435,113.12,113.06,0.024]
[1644491024399,4.421,113.11,113.06,0.024]
[1644491024598,4.421,113.11,113.05,34.9578358]
[1644491024797,4.671,113.11,113.05,34.9578358]
[1644491024997,12.51307609,113.1,113.0,0.024]
[1644491025196,4.422,113.09,113.0,0.024]
[1644491025998,4.422,113.09,113.0,44.01707196]
[1644491026198,4.422,113.09,113.01,0.024]
[1644491026397,4.672,113.11,113.01,0.024]
[1644491027499,14.14794177,113.1,113.01,0.024]
[1644491027698,4.422,113.09,113.01,0.024]
[1644491028499,4.672,113.09,113.01,0.024]
[1644491029000,0.25,113.09,113.01,0.024]
[1644491029402,17.6982,113.11,113.01,0.024]
[1644491029699,17.9482,113.11,113.01,0.024]
[1644491030900,17.9482,113.11,113.02,41.55627139]
[1644491031302,17.9482,113.11,113.03,0.024]
[1644491031702,22.35211988,113.11,113.03,0.024]
[1644491032500,17.9482,113.11,113.03,0.024]
[1644491032904,0.25,113.11,113.03,0.024]
[1644491033101,0.25,113.11,113.03,1.96942757]
[1644491033301,86.25388584,113.12,113.04,0.024]
[1644491033501,86.25388584,113.12,113.04,36.28856531]
[1644491033701,86.25388584,113.12,113.04,38.23399288]
[1644491033902,17.6949,113.14,113.04,36.28856531]
[1644491034302,4.421,113.15,113.04,36.28856531]
[1644491035804,17.9414,113.15,113.04,36.28856531]
[1644491036004,58.94573811,113.15,113.04,36.28856531]
[1644491036504,58.94573811,113.15,113.04,40.70956531]
[1644491036705,17.9414,113.15,113.04,40.70956531]
[1644491039716,2.23122154,113.14,113.04,40.70956531]
[1644491039913,17.6933,113.13,113.04,36.28856531]
[1644491040114,17.6933,113.13,113.04,35.78856531]
[1644491040325,19.92452154,113.13,113.04,35.78856531]
[1644491040920,17.6933,113.13,113.04,35.78856531]
[1644491042020,13.2723,113.13,113.04,35.78856531]
[1644491044526,4.421,113.14,113.04,35.78856531]
[1644491045125,4.421,113.14,113.04,46.42856531]
[1644491045731,13.2689,113.15,113.05,4.421]
[1644491045931,13.2689,113.15,113.06,46.57077883]
[1644491046130,17.6889,113.15,113.06,46.57077883]
[1644491046331,27.947,113.16,113.06,46.57077883]
[1644491046532,0.25,113.15,113.07,4.42]
[1644491046732,23.777,113.16,113.07,4.42]
[1644491047132,0.25,113.16,113.07,4.42]
[1644491047335,66.8995,113.17,113.08,39.9195804]
[1644491047532,13.5164,113.17,113.08,39.9195804]
[1644491048934,4.418,113.16,113.08,39.9195804]
[1644491049138,9.03947854,113.18,113.08,50.5595804]
[1644491049337,4.61947854,113.18,113.09,6.36342757]
[1644491049536,4.61947854,113.18,113.1,10.64]
[1644491049736,4.61947854,113.18,113.1,12.58542757]
[1644491049938,4.61947854,113.18,113.11,41.75469438]
[1644491050137,4.61947854,113.18,113.11,43.70012195]
[1644491050339,13.2633,113.2,113.11,41.75469438]
[1644491050638,4.418,113.19,113.11,41.75469438]
[1644491051840,17.6819,113.19,113.11,41.75469438]
[1644491052040,13.2639,113.19,113.11,41.75469438]
[1644491053042,4.418,113.18,113.11,41.75469438]
[1644491053441,4.668,113.18,113.11,41.75469438]
[1644491054443,0.25,113.18,113.11,41.75469438]
[1644491054843,13.5139,113.19,113.11,41.75469438]
[1644491055045,13.5139,113.19,113.11,46.17269438]
[1644491055547,4.418,113.18,113.11,46.17269438]
[1644491055748,4.418,113.18,113.12,0.024]
[1644491056048,0.25,113.19,113.12,0.024]
[1644491056665,13.2611,113.21,113.11,52.41869438]
[1644491056865,4.418,113.2,113.11,52.41869438]
[1644491057067,4.418,113.21,113.11,52.41869438]
[1644491057466,43.22803226,113.21,113.11,41.77869438]
[1644491057865,13.2635,113.19,113.11,41.77869438]
[1644491060070,13.2611,113.21,113.11,52.41869438]
[1644491060272,17.6791,113.21,113.11,52.39469438]
[1644491061279,17.6791,113.21,113.11,65.65539438]
[1644491061477,17.9291,113.21,113.11,65.65539438]
[1644491062986,13.5111,113.21,113.11,70.07339438]
[1644491064184,4.418,113.2,113.11,65.65539438]
[1644491065493,17.6789,113.2,113.11,65.65539438]
[1644491065685,13.2609,113.2,113.11,65.65539438]
[1644491066786,4.418,113.21,113.11,65.90539438]
[1644491067086,40.4851,113.22,113.12,4.418]
[1644491067287,36.0671,113.22,113.13,54.00754522]
[1644491067486,13.2595,113.22,113.13,54.00754522]
[1644491067687,13.5095,113.22,113.13,54.00754522]
[1644491068190,13.2595,113.22,113.13,54.00754522]
[1644491069287,13.2595,113.22,113.13,54.25754522]
[1644491069487,13.2595,113.22,113.14,4.417]
[1644491069690,13.2568,113.24,113.14,15.057]
[1644491069888,13.2271,113.3,113.14,15.057]
[1644491069889,4.417,113.28,113.19,0.314647]
[1644491070090,3.70049999,113.31,113.19,0.314647]
[1644491070091,3.70049999,113.31,113.2,10.64]
[1644491070294,13.437,113.33,113.2,15.054]
[1644491070494,51.04344065,113.32,113.21,24.943584]
[1644491070690,49.10119657,113.32,113.22,10.64]
[1644491070891,46.62944065,113.32,113.23,40.74904522]
[1644491071291,46.62944065,113.32,113.22,23.8888]
[1644491071492,4.414,113.31,113.23,10.64]
[1644491071691,92.164,113.31,113.2,10.64]
[1644491071892,13.2569,113.26,113.16,10.64]
[1644491072093,4.416,113.25,113.13,10.64]
[1644491072493,48.67289917,113.24,113.14,43.70111514]
[1644491072895,48.67289917,113.24,113.15,4.417]
[1644491073098,48.67289917,113.24,113.16,21.99151408]
[1644491073295,4.416,113.23,113.16,21.99151408]
[1644491073695,4.417,113.24,113.16,21.99151408]
[1644491074295,13.2589,113.24,113.16,21.99151408]
[1644491074694,42.78234251,113.23,113.16,21.99151408]
[1644491074918,4.417,113.22,113.16,21.99151408]
[1644491076521,4.667,113.22,113.16,21.99151408]
[1644491076721,44.11035545,113.21,113.13,10.64]
[1644491076920,48.52735545,113.21,113.13,10.64]
[1644491077720,48.52735545,113.21,113.14,41.31095728]
[1644491077922,48.52735545,113.21,113.12,72.5827]
[1644491078123,48.52735545,113.21,113.12,23.8997]
[1644491078620,48.52735545,113.21,113.12,13.2597]
[1644491078821,48.52735545,113.21,113.11,13.2619]
[1644491079023,44.11035545,113.21,113.12,42.81736973]
[1644491079722,57.37175545,113.21,113.12,42.81736973]
[1644491081421,35.45057442,113.19,113.12,42.81736973]
[1644491081623,4.418,113.2,113.12,42.81736973]
[1644491081823,13.2614,113.21,113.12,42.81736973]
[1644491082621,38.72673564,113.2,113.12,42.81736973]
[1644491083726,38.70273564,113.2,113.12,42.81736973]
[1644491083925,38.95273564,113.2,113.12,42.81736973]
[1644491085026,43.37073564,113.2,113.12,42.81736973]
[1644491085827,4.668,113.2,113.12,42.81736973]